[Event "Titled Tuesday Blitz June 15 2021"]
[White "Paravyan, David"]
[Black "Pakleza, Zbigniew"]
[WhiteFideId "4194985"]
[BlackFideId "1119290"]
[WhiteElo "2562"]
[BlackElo "2526"]
[Result "1-0"]
[Round "04"]
[TimeControl "180+1"]
[Date "2021.06.15"]
[WhiteClock "0:00:09"]
[BlackClock "0:00:05"]

1. e4 {[%clk 0:03:00]}  d6 {[%clk 0:02:58]} 2. d4 {[%clk 0:02:59]}  Nf6 {[%clk 0:02:59]} 3. f3 {[%clk 0:02:52]}  e5 {[%clk 0:02:55]} 4. dxe5 {[%clk 0:02:50]}  dxe5 {[%clk 0:02:56]} 5. Qxd8+ {[%clk 0:02:49]}  Kxd8 {[%clk 0:02:57]} 6. Bc4 {[%clk 0:02:48]}  Be6 {[%clk 0:02:48]} 7. Bxe6 {[%clk 0:02:47]}  fxe6 {[%clk 0:02:49]} 8. Nd2 {[%clk 0:02:48]}  Nbd7 {[%clk 0:02:41]} 9. Nc4 {[%clk 0:02:45]}  b5 {[%clk 0:02:35]} 10. Na5 {[%clk 0:02:43]}  Bb4+ {[%clk 0:02:34]} 11. Bd2 {[%clk 0:02:44]}  Bxa5 {[%clk 0:02:32]} 12. Bxa5 {[%clk 0:02:44]}  Ke7 {[%clk 0:02:28]} 13. Nh3 {[%clk 0:02:27]}  c5 {[%clk 0:02:23]} 14. Nf2 {[%clk 0:02:24]}  Nb8 {[%clk 0:01:59]} 15. Nd3 {[%clk 0:02:18]}  Nc6 {[%clk 0:01:57]} 16. Bc3 {[%clk 0:02:13]}  Nd7 {[%clk 0:01:50]} 17. b3 {[%clk 0:02:09]}  Rac8 {[%clk 0:01:25]} 18. O-O-O {[%clk 0:01:39]}  Nd4 {[%clk 0:01:13]} 19. Rhe1 {[%clk 0:01:38]}  Rhf8 {[%clk 0:00:57]} 20. Kb1 {[%clk 0:01:35]}  Rc6 {[%clk 0:00:53]} 21. Rd2 {[%clk 0:01:28]}  a5 {[%clk 0:00:46]} 22. Bxa5 {[%clk 0:01:10]}  b4 {[%clk 0:00:43]} 23. c3 {[%clk 0:01:04]}  bxc3 {[%clk 0:00:35]} 24. Bxc3 {[%clk 0:01:03]}  Rb8 {[%clk 0:00:30]} 25. Rc1 {[%clk 0:00:57]}  c4 {[%clk 0:00:21]} 26. Nxe5 {[%clk 0:00:49]}  Nxe5 {[%clk 0:00:21]} 27. Bxd4 {[%clk 0:00:48]}  cxb3 {[%clk 0:00:17]} 28. Rxc6 {[%clk 0:00:28]}  Nxc6 {[%clk 0:00:15]} 29. Bxg7 {[%clk 0:00:28]}  bxa2+ {[%clk 0:00:14]} 30. Kxa2 {[%clk 0:00:29]}  e5 {[%clk 0:00:13]} 31. Bh6 {[%clk 0:00:27]}  Nd4 {[%clk 0:00:09]} 32. Be3 {[%clk 0:00:25]}  Ra8+ {[%clk 0:00:07]} 33. Kb1 {[%clk 0:00:20]}  Rb8+ {[%clk 0:00:08]} 34. Rb2 {[%clk 0:00:20]}  Rd8 {[%clk 0:00:06]} 35. Rb7+ {[%clk 0:00:17]}  Ke6 {[%clk 0:00:07]} 36. Rxh7 {[%clk 0:00:17]}  Ne2 {[%clk 0:00:07]} 37. Rh6+ {[%clk 0:00:17]}  Kf7 {[%clk 0:00:07]} 38. Kc2 {[%clk 0:00:17]}  Rc8+ {[%clk 0:00:03]} 39. Kd2 {[%clk 0:00:16]}  Nc3 {[%clk 0:00:04]} 40. Rh5 {[%clk 0:00:15]}  Ke6 {[%clk 0:00:04]} 41. Rh6+ {[%clk 0:00:15]}  Kf7 {[%clk 0:00:05]} 42. Kd3 {[%clk 0:00:15]}  Nb5 {[%clk 0:00:04]} 43. Rb6 {[%clk 0:00:15]}  Rc3+ {[%clk 0:00:04]} 44. Kd2 {[%clk 0:00:15]}  Rb3 {[%clk 0:00:05]} 45. Bc5 {[%clk 0:00:13]}  Ke8 {[%clk 0:00:02]} 46. h4 {[%clk 0:00:12]}  Kd7 {[%clk 0:00:02]} 47. h5 {[%clk 0:00:12]}  Kc7 {[%clk 0:00:03]} 48. h6 {[%clk 0:00:12]}  Rb2+ {[%clk 0:00:03]} 49. Kc1 {[%clk 0:00:12]}  Rxg2 {[%clk 0:00:03]} 50. Rxb5 {[%clk 0:00:12]}  Rh2 {[%clk 0:00:04]} 51. Rb6 {[%clk 0:00:11]}  Rh1+ {[%clk 0:00:04]} 52. Kd2 {[%clk 0:00:10]}  Rxh6 {[%clk 0:00:05]} 53. Rxh6 {[%clk 0:00:09]} 1-0


[Site "https://www.chess.com"]

[Event "Titled Tuesday Blitz June 15 2021"]
[White "Perez Ponsa, Federico"]
[Black "Balakrishnan, Praveen"]
[WhiteFideId "117927"]
[BlackFideId "2064871"]
[WhiteElo "2672"]
[BlackElo "2237"]
[Result "1-0"]
[Round "04"]
[TimeControl "180+1"]
[Date "2021.06.15"]
[WhiteClock "0:00:26"]
[BlackClock "0:00:14"]

1. e4 {[%clk 0:03:00]}  g6 {[%clk 0:02:55]} 2. d4 {[%clk 0:03:00]}  Bg7 {[%clk 0:02:55]} 3. Nf3 {[%clk 0:03:01]}  d6 {[%clk 0:02:51]} 4. Bc4 {[%clk 0:03:02]}  c6 {[%clk 0:02:48]} 5. Bb3 {[%clk 0:03:01]}  Nf6 {[%clk 0:02:47]} 6. Qe2 {[%clk 0:02:59]}  O-O {[%clk 0:02:46]} 7. O-O {[%clk 0:02:53]}  Bg4 {[%clk 0:02:46]} 8. c3 {[%clk 0:02:52]}  Nbd7 {[%clk 0:02:33]} 9. Nbd2 {[%clk 0:02:50]}  e5 {[%clk 0:02:32]} 10. h3 {[%clk 0:02:50]}  Bxf3 {[%clk 0:02:29]} 11. Nxf3 {[%clk 0:02:51]}  Re8 {[%clk 0:02:29]} 12. dxe5 {[%clk 0:02:49]}  Nxe5 {[%clk 0:02:29]} 13. Bc2 {[%clk 0:02:44]}  Ned7 {[%clk 0:02:21]} 14. Bg5 {[%clk 0:02:25]}  d5 {[%clk 0:02:17]} 15. e5 {[%clk 0:02:17]}  h6 {[%clk 0:02:17]} 16. Bh4 {[%clk 0:02:14]}  Qb6 {[%clk 0:02:10]} 17. b4 {[%clk 0:01:50]}  Nh5 {[%clk 0:02:06]} 18. a4 {[%clk 0:01:44]}  Nxe5 {[%clk 0:02:06]} 19. Nxe5 {[%clk 0:01:44]}  Bxe5 {[%clk 0:02:05]} 20. Qd2 {[%clk 0:01:41]}  g5 {[%clk 0:01:50]} 21. a5 {[%clk 0:01:25]}  Qd8 {[%clk 0:01:24]} 22. Qd1 {[%clk 0:01:22]}  Ng7 {[%clk 0:01:13]} 23. Bg3 {[%clk 0:01:21]}  Bxc3 {[%clk 0:01:13]} 24. Ra3 {[%clk 0:01:09]}  Bxb4 {[%clk 0:01:07]} 25. Rb3 {[%clk 0:01:06]}  c5 {[%clk 0:01:00]} 26. Qd3 {[%clk 0:01:05]}  f5 {[%clk 0:01:00]} 27. Rbb1 {[%clk 0:00:59]}  d4 {[%clk 0:00:49]} 28. Qc4+ {[%clk 0:00:55]}  Kh8 {[%clk 0:00:46]} 29. f4 {[%clk 0:00:55]}  Re3 {[%clk 0:00:38]} 30. Rb3 {[%clk 0:00:38]}  Qe7 {[%clk 0:00:23]} 31. fxg5 {[%clk 0:00:33]}  Rxb3 {[%clk 0:00:21]} 32. Bxb3 {[%clk 0:00:32]}  hxg5 {[%clk 0:00:18]} 33. Qd5 {[%clk 0:00:30]}  Rd8 {[%clk 0:00:16]} 34. Qc4 {[%clk 0:00:29]}  Qe3+ {[%clk 0:00:16]} 35. Bf2 {[%clk 0:00:29]}  Qe7 {[%clk 0:00:15]} 36. a6 {[%clk 0:00:26]}  bxa6 {[%clk 0:00:15]} 37. Qxa6 {[%clk 0:00:26]}  d3 {[%clk 0:00:14]} 38. Qh6# {[%clk 0:00:26]} 1-0


[Site "https://www.chess.com"]

[Event "Titled Tuesday Blitz June 15 2021"]
[White "Priyanka Nutakki"]
[Black "Real De Azua, Ernesto"]
[WhiteFideId "25049615"]
[BlackFideId "108154"]
[WhiteElo "1916"]
[BlackElo "2476"]
[Result "0-1"]
[Round "04"]
[TimeControl "180+1"]
[Date "2021.06.15"]
[WhiteClock "0:00:09"]
[BlackClock "0:00:09"]

1. c4 {[%clk 0:03:00]}  Nf6 {[%clk 0:02:56]} 2. Nc3 {[%clk 0:03:01]}  e5 {[%clk 0:02:57]} 3. g3 {[%clk 0:03:00]}  Nc6 {[%clk 0:02:48]} 4. Bg2 {[%clk 0:02:59]}  Bc5 {[%clk 0:02:48]} 5. e3 {[%clk 0:02:56]}  O-O {[%clk 0:02:45]} 6. Nge2 {[%clk 0:02:56]}  a6 {[%clk 0:02:42]} 7. O-O {[%clk 0:02:55]}  d6 {[%clk 0:02:42]} 8. h3 {[%clk 0:02:53]}  Ba7 {[%clk 0:02:40]} 9. a3 {[%clk 0:02:51]}  Be6 {[%clk 0:02:36]} 10. d3 {[%clk 0:02:51]}  d5 {[%clk 0:02:35]} 11. cxd5 {[%clk 0:02:43]}  Nxd5 {[%clk 0:02:34]} 12. b4 {[%clk 0:02:39]}  Qd7 {[%clk 0:02:31]} 13. Kh2 {[%clk 0:02:39]}  Rad8 {[%clk 0:02:29]} 14. Ne4 {[%clk 0:01:54]}  Qe7 {[%clk 0:02:27]} 15. Qc2 {[%clk 0:01:50]}  Rfe8 {[%clk 0:01:43]} 16. Bb2 {[%clk 0:01:41]}  f6 {[%clk 0:01:28]} 17. Rac1 {[%clk 0:01:38]}  Qf7 {[%clk 0:01:26]} 18. Nc5 {[%clk 0:01:32]}  Bxc5 {[%clk 0:01:25]} 19. Qxc5 {[%clk 0:01:32]}  Nde7 {[%clk 0:01:20]} 20. d4 {[%clk 0:01:27]}  exd4 {[%clk 0:01:02]} 21. Nxd4 {[%clk 0:01:27]}  Bd5 {[%clk 0:01:03]} 22. e4 {[%clk 0:01:10]}  Nxd4 {[%clk 0:01:03]} 23. Qxd4 {[%clk 0:00:51]}  Nc6 {[%clk 0:00:48]} 24. Qe3 {[%clk 0:00:51]}  Bxe4 {[%clk 0:00:40]} 25. Bxe4 {[%clk 0:00:38]}  f5 {[%clk 0:00:40]} 26. f3 {[%clk 0:00:23]}  fxe4 {[%clk 0:00:33]} 27. fxe4 {[%clk 0:00:24]}  Qg6 {[%clk 0:00:33]} 28. Rce1 {[%clk 0:00:19]}  Ne5 {[%clk 0:00:27]} 29. Rd1 {[%clk 0:00:12]}  Rxd1 {[%clk 0:00:22]} 30. Rxd1 {[%clk 0:00:13]}  Nc4 {[%clk 0:00:21]} 31. Qb3 {[%clk 0:00:09]}  b5 {[%clk 0:00:18]} 32. e5 {[%clk 0:00:08]}  Rf8 {[%clk 0:00:14]} 33. Rd2 {[%clk 0:00:06]}  Qe4 {[%clk 0:00:10]} 34. Rg2 {[%clk 0:00:06]}  h6 {[%clk 0:00:07]} 35. e6 {[%clk 0:00:06]}  Qxe6 {[%clk 0:00:06]} 36. Qc3 {[%clk 0:00:06]}  Rf7 {[%clk 0:00:07]} 37. Qd4 {[%clk 0:00:06]}  Kh7 {[%clk 0:00:06]} 38. Bc3 {[%clk 0:00:06]}  Qg6 {[%clk 0:00:05]} 39. h4 {[%clk 0:00:05]}  c6 {[%clk 0:00:05]} 40. a4 {[%clk 0:00:05]}  Qh5 {[%clk 0:00:03]} 41. axb5 {[%clk 0:00:05]}  axb5 {[%clk 0:00:04]} 42. Qe4+ {[%clk 0:00:04]}  Qg6 {[%clk 0:00:04]} 43. Qd4 {[%clk 0:00:04]}  Qf5 {[%clk 0:00:03]} 44. Qd8 {[%clk 0:00:03]}  Rd7 {[%clk 0:00:03]} 45. Qe8 {[%clk 0:00:03]}  Nd6 {[%clk 0:00:03]} 46. Qe2 {[%clk 0:00:02]}  Qg6 {[%clk 0:00:03]} 47. Bd4 {[%clk 0:00:02]}  Nf5 {[%clk 0:00:03]} 48. Bc5 {[%clk 0:00:03]}  Nd4 {[%clk 0:00:03]} 49. Qf2 {[%clk 0:00:03]}  Ne6 {[%clk 0:00:03]} 50. Qf3 {[%clk 0:00:03]}  Nxc5 {[%clk 0:00:03]} 51. bxc5 {[%clk 0:00:04]}  Rd5 {[%clk 0:00:03]} 52. Re2 {[%clk 0:00:03]}  Qf5 {[%clk 0:00:03]} 53. Qxf5+ {[%clk 0:00:03]}  Rxf5 {[%clk 0:00:04]} 54. Rc2 {[%clk 0:00:03]}  Rd5 {[%clk 0:00:03]} 55. Kh3 {[%clk 0:00:03]}  Kg6 {[%clk 0:00:04]} 56. g4 {[%clk 0:00:03]}  Kf6 {[%clk 0:00:04]} 57. Kg2 {[%clk 0:00:04]}  Ke5 {[%clk 0:00:04]} 58. Kf3 {[%clk 0:00:04]}  Kd4 {[%clk 0:00:05]} 59. Re2 {[%clk 0:00:04]}  Rxc5 {[%clk 0:00:04]} 60. Re7 {[%clk 0:00:04]}  b4 {[%clk 0:00:04]} 61. Rxg7 {[%clk 0:00:04]}  b3 {[%clk 0:00:05]} 62. Rd7+ {[%clk 0:00:04]}  Kc3 {[%clk 0:00:04]} 63. Rd1 {[%clk 0:00:04]}  Kc2 {[%clk 0:00:04]} 64. Rf1 {[%clk 0:00:04]}  b2 {[%clk 0:00:05]} 65. Kf4 {[%clk 0:00:04]}  b1=Q {[%clk 0:00:05]} 66. Rxb1 {[%clk 0:00:04]}  Kxb1 {[%clk 0:00:06]} 67. g5 {[%clk 0:00:04]}  hxg5+ {[%clk 0:00:06]} 68. hxg5 {[%clk 0:00:05]}  Rd5 {[%clk 0:00:06]} 69. g6 {[%clk 0:00:05]}  c5 {[%clk 0:00:07]} 70. g7 {[%clk 0:00:05]}  Rd8 {[%clk 0:00:07]} 71. Ke4 {[%clk 0:00:05]}  Rg8 {[%clk 0:00:07]} 72. Kd5 {[%clk 0:00:06]}  Rxg7 {[%clk 0:00:07]} 73. Kxc5 {[%clk 0:00:07]}  Kc2 {[%clk 0:00:07]} 74. Kd6 {[%clk 0:00:07]}  Rg1 {[%clk 0:00:07]} 75. Ke6 {[%clk 0:00:08]}  Rd1 {[%clk 0:00:08]} 76. Kf6 {[%clk 0:00:09]}  Rd3 {[%clk 0:00:09]} 0-1


[Site "https://www.chess.com"]

[Event "Titled Tuesday Blitz June 15 2021"]
[White "Rostovtsev, Dmitry"]
[Black "Guliev, Logman"]
[WhiteFideId "34278320"]
[BlackFideId "13400061"]
[WhiteElo "2143"]
[BlackElo "2128"]
[Result "1/2-1/2"]
[Round "04"]
[TimeControl "180+1"]
[Date "2021.06.15"]
[WhiteClock "0:00:09"]
[BlackClock "0:00:06"]

1. e4 {[%clk 0:03:00]}  c5 {[%clk 0:02:59]} 2. Nf3 {[%clk 0:03:00]}  d6 {[%clk 0:02:59]} 3. d4 {[%clk 0:03:01]}  cxd4 {[%clk 0:02:59]} 4. Nxd4 {[%clk 0:03:02]}  Nf6 {[%clk 0:02:59]} 5. Nc3 {[%clk 0:03:02]}  a6 {[%clk 0:02:59]} 6. Be3 {[%clk 0:03:03]}  e5 {[%clk 0:02:59]} 7. Nf3 {[%clk 0:03:04]}  h6 {[%clk 0:02:58]} 8. h3 {[%clk 0:02:59]}  Be6 {[%clk 0:02:55]} 9. g4 {[%clk 0:02:59]}  Qc7 {[%clk 0:02:54]} 10. g5 {[%clk 0:02:57]}  hxg5 {[%clk 0:02:45]} 11. Nxg5 {[%clk 0:02:57]}  Bc4 {[%clk 0:02:33]} 12. Bxc4 {[%clk 0:02:50]}  Qxc4 {[%clk 0:02:32]} 13. Qd2 {[%clk 0:02:51]}  b5 {[%clk 0:02:12]} 14. a3 {[%clk 0:02:37]}  Nbd7 {[%clk 0:02:05]} 15. Rg1 {[%clk 0:02:27]}  Rc8 {[%clk 0:02:02]} 16. O-O-O {[%clk 0:02:19]}  b4 {[%clk 0:01:58]} 17. Qd3 {[%clk 0:02:19]}  Qxd3 {[%clk 0:01:53]} 18. Rxd3 {[%clk 0:01:22]}  bxc3 {[%clk 0:01:51]} 19. b4 {[%clk 0:01:20]}  Be7 {[%clk 0:01:46]} 20. Kb1 {[%clk 0:01:18]}  g6 {[%clk 0:01:42]} 21. Rgd1 {[%clk 0:01:16]}  Nh5 {[%clk 0:01:41]} 22. Ka2 {[%clk 0:01:10]}  Nf4 {[%clk 0:01:39]} 23. Rxd6 {[%clk 0:01:09]}  Bxd6 {[%clk 0:01:33]} 24. Rxd6 {[%clk 0:01:10]}  Nxh3 {[%clk 0:01:21]} 25. Nxf7 {[%clk 0:01:06]}  Kxf7 {[%clk 0:01:17]} 26. Rxd7+ {[%clk 0:01:06]}  Ke6 {[%clk 0:01:17]} 27. Ra7 {[%clk 0:01:05]}  Rc6 {[%clk 0:01:14]} 28. a4 {[%clk 0:01:06]}  Rb8 {[%clk 0:01:11]} 29. Kb3 {[%clk 0:01:06]}  Nf4 {[%clk 0:01:10]} 30. Rg7 {[%clk 0:01:01]}  Kf6 {[%clk 0:01:05]} 31. Rd7 {[%clk 0:01:00]}  Ne6 {[%clk 0:01:02]} 32. Rd1 {[%clk 0:00:58]}  Rd8 {[%clk 0:00:56]} 33. Rc1 {[%clk 0:00:43]}  Nd4+ {[%clk 0:00:56]} 34. Ka3 {[%clk 0:00:40]}  Rb8 {[%clk 0:00:48]} 35. f4 {[%clk 0:00:37]}  Rc4 {[%clk 0:00:45]} 36. Bxd4 {[%clk 0:00:35]}  Rxd4 {[%clk 0:00:43]} 37. fxe5+ {[%clk 0:00:35]}  Kxe5 {[%clk 0:00:42]} 38. Rb1 {[%clk 0:00:36]}  Rd2 {[%clk 0:00:39]} 39. Rc1 {[%clk 0:00:32]}  g5 {[%clk 0:00:39]} 40. Rg1 {[%clk 0:00:26]}  Rxc2 {[%clk 0:00:38]} 41. Kb3 {[%clk 0:00:24]}  Rb2+ {[%clk 0:00:36]} 42. Kxc3 {[%clk 0:00:18]}  R2xb4 {[%clk 0:00:36]} 43. Rxg5+ {[%clk 0:00:17]}  Kxe4 {[%clk 0:00:36]} 44. Rg4+ {[%clk 0:00:16]}  Kd5 {[%clk 0:00:33]} 45. Rxb4 {[%clk 0:00:16]}  Rh8 {[%clk 0:00:32]} 46. Rb6 {[%clk 0:00:13]}  Ra8 {[%clk 0:00:28]} 47. Kb4 {[%clk 0:00:13]}  Ra7 {[%clk 0:00:25]} 48. Rb8 {[%clk 0:00:11]}  Kc6 {[%clk 0:00:21]} 49. Ka5 {[%clk 0:00:11]}  Kc7 {[%clk 0:00:19]} 50. Rb6 {[%clk 0:00:08]}  Ra8 {[%clk 0:00:18]} 51. Rh6 {[%clk 0:00:07]}  Rg8 {[%clk 0:00:16]} 52. Kxa6 {[%clk 0:00:06]}  Kb8 {[%clk 0:00:14]} 53. Rf6 {[%clk 0:00:03]}  Rh8 {[%clk 0:00:11]} 54. a5 {[%clk 0:00:03]}  Ka8 {[%clk 0:00:09]} 55. Rd6 {[%clk 0:00:03]}  Rg8 {[%clk 0:00:09]} 56. Kb6 {[%clk 0:00:04]}  Rb8+ {[%clk 0:00:07]} 57. Kc7 {[%clk 0:00:02]}  Rb1 {[%clk 0:00:05]} 58. Rb6 {[%clk 0:00:01]}  Rc1+ {[%clk 0:00:04]} 59. Kd6 {[%clk 0:00:01]}  Ka7 {[%clk 0:00:04]} 60. Rc6 {[%clk 0:00:02]}  Rd1+ {[%clk 0:00:04]} 61. Kc5 {[%clk 0:00:02]}  Rc1+ {[%clk 0:00:04]} 62. Kb5 {[%clk 0:00:02]}  Rb1+ {[%clk 0:00:04]} 63. Ka4 {[%clk 0:00:03]}  Rb2 {[%clk 0:00:05]} 64. Rc7+ {[%clk 0:00:02]}  Ka6 {[%clk 0:00:04]} 65. Rc6+ {[%clk 0:00:02]}  Ka7 {[%clk 0:00:04]} 66. Rh6 {[%clk 0:00:03]}  Rb1 {[%clk 0:00:04]} 67. Rg6 {[%clk 0:00:03]}  Rb2 {[%clk 0:00:05]} 68. Ka3 {[%clk 0:00:03]}  Rb1 {[%clk 0:00:05]} 69. Rg5 {[%clk 0:00:03]}  Ka6 {[%clk 0:00:04]} 70. Ka4 {[%clk 0:00:04]}  Rf1 {[%clk 0:00:04]} 71. Rg6+ {[%clk 0:00:04]}  Ka7 {[%clk 0:00:04]} 72. Kb5 {[%clk 0:00:04]}  Rf5+ {[%clk 0:00:04]} 73. Kb4 {[%clk 0:00:04]}  Re5 {[%clk 0:00:04]} 74. Rg4 {[%clk 0:00:03]}  Rf5 {[%clk 0:00:04]} 75. Rd4 {[%clk 0:00:04]}  Rg5 {[%clk 0:00:05]} 76. Rd7+ {[%clk 0:00:04]}  Ka6 {[%clk 0:00:05]} 77. Rd6+ {[%clk 0:00:05]}  Ka7 {[%clk 0:00:05]} 78. Rc6 {[%clk 0:00:05]}  Kb7 {[%clk 0:00:05]} 79. Rc5 {[%clk 0:00:06]}  Rxc5 {[%clk 0:00:03]} 80. Kxc5 {[%clk 0:00:03]}  Ka6 {[%clk 0:00:04]} 81. Kb4 {[%clk 0:00:03]}  Ka7 {[%clk 0:00:04]} 82. Kb5 {[%clk 0:00:04]}  Kb7 {[%clk 0:00:04]} 83. a6+ {[%clk 0:00:05]}  Ka7 {[%clk 0:00:05]} 84. Ka5 {[%clk 0:00:06]}  Ka8 {[%clk 0:00:05]} 85. Kb6 {[%clk 0:00:07]}  Kb8 {[%clk 0:00:06]} 86. a7+ {[%clk 0:00:08]}  Ka8 {[%clk 0:00:06]} 87. Ka6 {[%clk 0:00:09]} 1/2-1/2


[Site "https://www.chess.com"]

[Event "Titled Tuesday Blitz June 15 2021"]
[White "Seo, Jung Min"]
[Black "Sarana, Alexey"]
[WhiteFideId "1734687"]
[BlackFideId "24133795"]
[WhiteElo "2486"]
[BlackElo "2629"]
[Result "0-1"]
[Round "04"]
[TimeControl "180+1"]
[Date "2021.06.15"]
[WhiteClock "0:00:03"]
[BlackClock "0:00:09"]

1. e4 {[%clk 0:03:00]}  c5 {[%clk 0:02:54]} 2. Nf3 {[%clk 0:03:00]}  d6 {[%clk 0:02:55]} 3. d4 {[%clk 0:03:01]}  cxd4 {[%clk 0:02:56]} 4. Nxd4 {[%clk 0:03:01]}  Nf6 {[%clk 0:02:56]} 5. Nc3 {[%clk 0:03:02]}  a6 {[%clk 0:02:57]} 6. Bg5 {[%clk 0:03:02]}  e6 {[%clk 0:02:56]} 7. f4 {[%clk 0:03:02]}  Qb6 {[%clk 0:02:56]} 8. Nb3 {[%clk 0:03:00]}  Nbd7 {[%clk 0:02:54]} 9. Qf3 {[%clk 0:02:58]}  Qc7 {[%clk 0:02:52]} 10. O-O-O {[%clk 0:02:57]}  b5 {[%clk 0:02:53]} 11. Bd3 {[%clk 0:02:55]}  Bb7 {[%clk 0:02:53]} 12. g4 {[%clk 0:02:51]}  Rc8 {[%clk 0:02:51]} 13. Bxf6 {[%clk 0:02:50]}  Nxf6 {[%clk 0:02:49]} 14. g5 {[%clk 0:02:51]}  b4 {[%clk 0:02:46]} 15. Ne2 {[%clk 0:02:24]}  Nd7 {[%clk 0:02:22]} 16. Kb1 {[%clk 0:02:24]}  Be7 {[%clk 0:02:22]} 17. h4 {[%clk 0:02:23]}  a5 {[%clk 0:02:18]} 18. f5 {[%clk 0:02:23]}  a4 {[%clk 0:02:16]} 19. Nbd4 {[%clk 0:02:22]}  e5 {[%clk 0:02:02]} 20. f6 {[%clk 0:02:15]}  exd4 {[%clk 0:01:56]} 21. fxe7 {[%clk 0:02:15]}  Ne5 {[%clk 0:01:57]} 22. Qg3 {[%clk 0:02:10]}  Nxd3 {[%clk 0:01:35]} 23. Qxd3 {[%clk 0:02:08]}  b3 {[%clk 0:01:17]} 24. cxb3 {[%clk 0:01:58]}  Qxe7 {[%clk 0:01:17]} 25. Ng3 {[%clk 0:01:55]}  axb3 {[%clk 0:01:15]} 26. Qb5+ {[%clk 0:01:38]}  Bc6 {[%clk 0:01:14]} 27. Qxb3 {[%clk 0:01:36]}  Bxe4+ {[%clk 0:01:08]} 28. Nxe4 {[%clk 0:01:35]}  Qxe4+ {[%clk 0:01:08]} 29. Qd3 {[%clk 0:01:35]}  Qxd3+ {[%clk 0:00:56]} 30. Rxd3 {[%clk 0:01:35]}  h6 {[%clk 0:00:54]} 31. Rxd4 {[%clk 0:01:21]}  hxg5 {[%clk 0:00:52]} 32. Re1+ {[%clk 0:01:21]}  Kd7 {[%clk 0:00:50]} 33. hxg5 {[%clk 0:01:21]}  Rh5 {[%clk 0:00:41]} 34. Rf4 {[%clk 0:01:15]}  Rf8 {[%clk 0:00:40]} 35. Rg4 {[%clk 0:01:14]}  Rh2 {[%clk 0:00:37]} 36. Reg1 {[%clk 0:00:55]}  Rf2 {[%clk 0:00:36]} 37. R4g2 {[%clk 0:00:54]}  Rf5 {[%clk 0:00:36]} 38. a4 {[%clk 0:00:51]}  Rb8 {[%clk 0:00:36]} 39. Ka2 {[%clk 0:00:49]}  Rb4 {[%clk 0:00:33]} 40. Ka3 {[%clk 0:00:45]}  Rb7 {[%clk 0:00:24]} 41. Rg3 {[%clk 0:00:41]}  Rf4 {[%clk 0:00:24]} 42. b3 {[%clk 0:00:39]}  d5 {[%clk 0:00:24]} 43. Rd3 {[%clk 0:00:36]}  Kd6 {[%clk 0:00:22]} 44. Rgd1 {[%clk 0:00:30]}  Rf5 {[%clk 0:00:23]} 45. Rg3 {[%clk 0:00:28]}  Rf4 {[%clk 0:00:22]} 46. Rgd3 {[%clk 0:00:28]}  Rf5 {[%clk 0:00:22]} 47. Rg3 {[%clk 0:00:28]}  g6 {[%clk 0:00:16]} 48. b4 {[%clk 0:00:23]}  Rf4 {[%clk 0:00:16]} 49. Rb3 {[%clk 0:00:20]}  Rc4 {[%clk 0:00:16]} 50. a5 {[%clk 0:00:19]}  d4 {[%clk 0:00:17]} 51. Ka4 {[%clk 0:00:19]}  Kc6 {[%clk 0:00:16]} 52. Rf1 {[%clk 0:00:15]}  Rc2 {[%clk 0:00:14]} 53. Rf6+ {[%clk 0:00:14]}  Kd5 {[%clk 0:00:15]} 54. b5 {[%clk 0:00:11]}  Rc4+ {[%clk 0:00:09]} 55. Rb4 {[%clk 0:00:11]}  d3 {[%clk 0:00:09]} 56. Rxc4 {[%clk 0:00:09]}  Kxc4 {[%clk 0:00:10]} 57. b6 {[%clk 0:00:08]}  Rd7 {[%clk 0:00:07]} 58. a6 {[%clk 0:00:06]}  d2 {[%clk 0:00:07]} 59. Rf1 {[%clk 0:00:06]}  d1=Q+ {[%clk 0:00:08]} 60. Rxd1 {[%clk 0:00:06]}  Rxd1 {[%clk 0:00:09]} 61. Ka3 {[%clk 0:00:03]}  Ra1+ {[%clk 0:00:09]} 0-1


[Site "https://www.chess.com"]

[Event "Titled Tuesday Blitz June 15 2021"]
[White "Shahade, Gregory"]
[Black "Vyatkin, Dmitry"]
[WhiteFideId "2009064"]
[BlackFideId "4171900"]
[WhiteElo "2718"]
[BlackElo "2279"]
[Result "1-0"]
[Round "04"]
[TimeControl "180+1"]
[Date "2021.06.15"]
[WhiteClock "0:00:13"]
[BlackClock "0:00:11"]

1. e4 {[%clk 0:03:00]}  e6 {[%clk 0:02:59]} 2. d4 {[%clk 0:03:00]}  d5 {[%clk 0:02:59]} 3. Nd2 {[%clk 0:03:01]}  c5 {[%clk 0:02:59]} 4. exd5 {[%clk 0:03:01]}  Qxd5 {[%clk 0:02:59]} 5. Ngf3 {[%clk 0:03:01]}  cxd4 {[%clk 0:02:59]} 6. Bc4 {[%clk 0:03:01]}  Qd6 {[%clk 0:02:59]} 7. O-O {[%clk 0:03:01]}  Nf6 {[%clk 0:03:00]} 8. Nb3 {[%clk 0:03:02]}  Nc6 {[%clk 0:03:00]} 9. Nbxd4 {[%clk 0:03:02]}  Nxd4 {[%clk 0:03:00]} 10. Nxd4 {[%clk 0:03:03]}  a6 {[%clk 0:03:00]} 11. Re1 {[%clk 0:03:02]}  Bd7 {[%clk 0:03:01]} 12. Bg5 {[%clk 0:02:50]}  Qc5 {[%clk 0:02:58]} 13. Bxf6 {[%clk 0:02:43]}  gxf6 {[%clk 0:02:57]} 14. Bf1 {[%clk 0:02:44]}  O-O-O {[%clk 0:02:49]} 15. c3 {[%clk 0:02:43]}  e5 {[%clk 0:02:45]} 16. Nb3 {[%clk 0:02:43]}  Qb6 {[%clk 0:02:37]} 17. Qf3 {[%clk 0:02:42]}  h5 {[%clk 0:02:29]} 18. Bd3 {[%clk 0:02:38]}  h4 {[%clk 0:01:45]} 19. Be4 {[%clk 0:02:37]}  h3 {[%clk 0:01:39]} 20. g3 {[%clk 0:02:33]}  Be7 {[%clk 0:01:35]} 21. Rad1 {[%clk 0:02:31]}  Be6 {[%clk 0:01:35]} 22. Bd5 {[%clk 0:02:13]}  Rd6 {[%clk 0:01:12]} 23. c4 {[%clk 0:02:10]}  Bxd5 {[%clk 0:01:06]} 24. Rxd5 {[%clk 0:02:07]}  Rxd5 {[%clk 0:01:07]} 25. Qxd5 {[%clk 0:02:07]}  Qe6 {[%clk 0:01:07]} 26. Qe4 {[%clk 0:01:30]}  Rd8 {[%clk 0:01:05]} 27. c5 {[%clk 0:01:12]}  f5 {[%clk 0:01:02]} 28. Qe2 {[%clk 0:01:05]}  e4 {[%clk 0:01:00]} 29. c6 {[%clk 0:01:03]}  Bg5 {[%clk 0:00:51]} 30. cxb7+ {[%clk 0:00:58]}  Kb8 {[%clk 0:00:51]} 31. Nc5 {[%clk 0:00:56]}  Qb6 {[%clk 0:00:50]} 32. Qxa6 {[%clk 0:00:51]}  Qxa6 {[%clk 0:00:39]} 33. Nxa6+ {[%clk 0:00:52]}  Kxb7 {[%clk 0:00:40]} 34. Nc5+ {[%clk 0:00:53]}  Kb6 {[%clk 0:00:39]} 35. Nb3 {[%clk 0:00:51]}  Ra8 {[%clk 0:00:34]} 36. a3 {[%clk 0:00:49]}  Rc8 {[%clk 0:00:33]} 37. Re2 {[%clk 0:00:46]}  Kb5 {[%clk 0:00:26]} 38. Nd4+ {[%clk 0:00:40]}  Ka4 {[%clk 0:00:24]} 39. Re1 {[%clk 0:00:38]}  Rc5 {[%clk 0:00:20]} 40. f3 {[%clk 0:00:30]}  Bf6 {[%clk 0:00:19]} 41. Rd1 {[%clk 0:00:12]}  Rd5 {[%clk 0:00:18]} 42. b3+ {[%clk 0:00:13]}  Kxa3 {[%clk 0:00:10]} 43. Nc2+ {[%clk 0:00:13]}  Kxb3 {[%clk 0:00:10]} 44. Rxd5 {[%clk 0:00:13]}  Kxc2 {[%clk 0:00:11]} 45. Rxf5 {[%clk 0:00:12]}  Bd4+ {[%clk 0:00:11]} 46. Kf1 {[%clk 0:00:13]}  e3 {[%clk 0:00:12]} 47. Ke2 {[%clk 0:00:13]}  f6 {[%clk 0:00:11]} 48. Rf4 {[%clk 0:00:13]}  Kc3 {[%clk 0:00:11]} 49. Rh4 {[%clk 0:00:13]} 1-0


[Site "https://www.chess.com"]